Cogmind - Beta 16 @@@ ROGUE MODE // 2025.11.04 @ 18:12:33 Player: souux Result: Destroyed by as-28705 with Assembled Heavy Rifle Performance ------------- Evolutions (0) 0 Regions Visited (2) 400 Robots Destroyed (28) 140 Value Destroyed (575) 575 Prototype IDs (4) 80 Alien Tech Used (0) 0 Bonus (0) 0 TOTAL SCORE: 1195 Bonus ------- None Cogmind --------- Core Integrity 0/250 Matter 170/300 Energy 238/250 System Corruption 4% Temperature Cool (0) Movement Walking (260) Ox2 Location -10/Mines Parts ------- > --- POWER (1) -------- Ion Engine > --- PROPULSION (2) --- Aluminum Leg Aluminum Leg > --- UTILITY (2) ------ Improved Heat Sink High-capacity Storage Unit > --- WEAPON (2) ------- Particle Gun Light Cannon > --- INVENTORY (20) --- Light Nuclear Core Light Treads Improved Heat Sink Large Storage Unit High-capacity Storage Unit High-capacity Matter Pod (200) Structural Scanner Structural Scanner Seismic Detector ECM Suite Small Laser Beam Cannon Assault Rifle Assault Rifle Peak State ------------ > --- POWER ------------ Light Nuclear Core > --- PROPULSION ------- Light Treads Light Treads > --- UTILITY ---------- Improved Heat Sink High-capacity Storage Unit > --- WEAPON ----------- Particle Gun Grenade Launcher > --- INVENTORY -------- Ion Engine Light Nuclear Core Light Treads Aluminum Leg Aluminum Leg Improved Heat Sink Large Storage Unit High-capacity Storage Unit High-capacity Matter Pod Structural Scanner Structural Scanner Seismic Detector ECM Suite Small Laser Beam Cannon Assault Rifle Assault Rifle Light Cannon [Rating: 14] Favorites ----------- Power Light Ion Engine Engine Light Ion Engine Power Core Light Nuclear Core Propulsion Light Treads Treads Light Treads Leg Aluminum Leg Wheel Compact Wheel Utility High-capacity Storage Unit Device Seismic Detector Storage High-capacity Storage Unit Weapon Assault Rifle Energy Gun Particle Gun Ballistic Gun Assault Rifle Ballistic Cannon Light Cannon Launcher Grenade Launcher Build | -11 -10 -10 ------- Run | Yrd Mat Min Slots Evolved . | . . . Power . | . . . Propulsion . | . . . Utility . | . . . Weapon . | . . . Parts Attached 25 | 7 10 8 Power 5 | 1 2 2 Engine 4 | 1 2 1 Core 1 | . . 1 Reactor . | . . . Propulsion 7 | 2 4 1 Treads 3 | . 2 1 Leg 2 | 2 . . Wheel 2 | . 2 . Hover . | . . . Flight . | . . . Utility 6 | 2 1 3 Device 4 | 1 . 3 Storage 2 | 1 1 . Processor . | . . . Hackware . | . . . Protection . | . . . Artifact . | . . . Weapon 7 | 2 3 2 Energy Gun 1 | . 1 . Energy Cannon . | . . . Ballistic Gun 4 | 2 2 . Ballistic Cannon 1 | . . 1 Launcher 1 | . . 1 Special Weapon . | . . . Impact Weapon . | . . . Slashing Weapon . | . . . Piercing Weapon . | . . . Special Melee Weapon . | . . . Unidentified Prototypes . | . . . Parts Lost 9 | . 3 6 Power 3 | . 1 2 Propulsion 3 | . . 3 Utility 1 | . 1 . Weapon 2 | . 1 1 Highest Loss Streak 5 | . 2 5 To Critical Strikes . | . . . Average Backups 16 | 5 16 18 Power 2 | . 2 2 Propulsion 3 | 3 4 3 Utility 6 | . 6 8 Weapon 3 | . 3 4 Tool/Special . | . . . Unused Backups 12 | . 1 11 Power 1 | . . 1 Propulsion 1 | . . 1 Utility 7 | . 1 6 Weapon 3 | . . 3 Tool/Special . | . . . Average Slot Usage (%) 94 | . 94 96 Engine 13 | . 13 13 Treads 26 | . 26 24 Device 9 | . 8 12 Storage 14 | . 14 14 Energy Gun 6 | . 5 14 Ballistic Gun 19 | . 22 1 Launcher 1 | . . 11 Peak Build Rating 14 | 7 9 14 Average Rating 8 | 5 8 10 On Entrance 5 | . 7 9 Avg Prop Armor Cover (%) . | . . . Naked Turns . | . . . Heaviest Build 52 | 13 48 52 Greatest Support 40 | 20 40 40 Greatest Overweight (x) 5 | 1 1 5 Average Overweight (x) . | . . 1 Largest Inventory Capacity 20 | 8 20 20 Average Capacity 19 | 7 19 20 Most Carried 20 | 8 20 20 Average Carried 16 | 5 16 18 Final Capacity 20 | 8 20 20 Final Carried 20 | 7 20 14 Class Distribution -------------------- 99% | Mutant Dominant Class ---------------- Mutant | -10/Materials Mutant | -10/Mines Resources | -11 -10 -10 ----------- Run | Yrd Mat Min Matter Collected 1148 | 324 782 42 Remotely . | . . . Salvage Created 1115 | 156 838 121 Parts 60 | 13 41 6 Haulers Intercepted 2 | . 2 . Recyclers Shooed 2 | 1 1 . Parts Field Recycled . | . . . Retrieved Matter . | . . . Parts Self-Destructed . | . . . Prevented . | . . . Parts Restored . | . . . Kills | -11 -10 -10 ------- Run | Yrd Mat Min Combat Hostiles Destroyed 21 | . 12 9 Guns 15 | . 12 3 Cannons 1 | . . 1 AOE 5 | . . 5 Classes Destroyed 8 | 2 5 1 Builder 1 | . 1 . Tunneler 4 | 4 . . Hauler 2 | . 2 . Recycler 4 | 1 3 . Watcher 3 | . 3 . Swarmer 3 | . 3 . Grunt 11 | . 9 2 Assembled 7 | . . 7 Best Kill Streak 4 | 4 3 4 Combat Bots Only 4 | . 3 4 Max Kills in Single Turn 2 | 1 2 2 Gunslinging . | . . . Exploded 2 | . . 2 Melee . | . . . Uniques/NPCs Destroyed . | . . . Combat | -11 -10 -10 -------- Run | Yrd Mat Min Hostile Shots Fired 146 | . 99 47 Missed 28 | . 22 6 Hits 118 | . 77 41 Projectile 118 | . 77 41 Critical Strikes 2 | . 1 1 Part Disruptions 1 | . . 1 Damage Taken 1490 | . 848 642 Core 251 | . 137 114 Absorbed by Shields . | . . . Core Remaining (%) 100 | 100 . . Volleys Fired 129 | 9 91 29 Largest 2 | 2 2 2 Hottest 95 | 40 85 95 Shots Fired 240 | 18 182 40 Gun 231 | 18 182 31 Cannon 6 | . . 6 Launcher 3 | . . 3 Special . | . . . Kinetic 186 | 18 157 11 Thermal 51 | . 25 26 Explosive 3 | . . 3 Electromagnetic . | . . . Robot Hit Streak 18 | 10 18 6 Robot Miss Streak 6 | 1 6 4 Penetration Max . | . . . Secondary Targets 2 | . 2 . Max Gunslinging Chain 1 | . 1 . Shots Hit Robots 149 | 14 115 20 Core Hits 62 | 6 39 17 Critical Kills 1 | . 1 . Critical Parts Destroyed . | . . . Critical Strikes 2 | . 1 1 Burn 1 | . . 1 Destroy 1 | . 1 . Melee Attacks . | . . . Impact . | . . . Slashing . | . . . Piercing . | . . . Sneak Attacks . | . . . Combat Hostiles . | . . . Follow-up Attacks . | . . . Damage Inflicted 2397 | 208 1575 614 Guns 2041 | 208 1572 261 Cannons 69 | . . 69 Explosions 284 | . . 284 Melee . | . . . Ramming 3 | . 3 . Kinetic 1649 | 208 1351 90 Thermal 461 | . 221 240 Explosive 284 | . . 284 Electromagnetic . | . . . Impact . | . . . Slashing . | . . . Piercing . | . . . Highest Corruption 4 | . 4 4 Average Corruption 3 | . 3 4 Corruption Purged . | . . . Corruption Blocked . | . . . Effects 29 | . 15 14 Message Errors 11 | . 7 4 Matter Fused 7 | . 4 3 Heat Flow Errors 3 | . . 3 Parts Rejected 1 | . 1 . Parts Fused 1 | . 1 . Data Loss (minor) 1 | . 1 . Data Loss (major) 1 | . 1 . Misfires 1 | . . 1 Alerts 2 | . . 2 Weapon Failures 1 | . . 1 Overload Shots . | . . . Overflow Damage 11 | . . 11 Projectiles . | . . . Explosions 11 | . . 11 Melee . | . . . Knockbacks . | . . . Impact . | . . . Kinetic . | . . . Secondary . | . . . Self-Inflicted Damage 60 | . . 60 Shots 2 | . . 2 Rammed 2 | . 2 . Targets Rammed 2 | . 2 . Kicked . | . . . Crushed . | . . . Highest Temperature 265 | . 104 265 Average Temperature 52 | . 29 84 Received Heat Transfer 597 | . 411 186 Siege Activations . | . . . Martial Activations . | . . . Shielding Activations . | . . . Robots Disrupted . | . . . Combat Hostiles . | . . . Robots Corrupted . | . . . Combat Hostiles . | . . . Parts Fried . | . . . Impact Corruptions . | . . . Robots Melted . | . . . Combat Hostiles . | . . . Parts Melted 3 | . 1 2 Heat Transferred 1147 | . 518 629 Parts Sabotaged . | . . . Parts Stolen . | . . . Parts Stripped . | . . . Power Chain Reactions . | . . . Alert | -11 -10 -10 ------- Run | Yrd Mat Min Maximum Alert Level . | . . . Low Security (%) 100 | 100 100 100 Level 1 . | . . . Level 2 . | . . . Level 3 . | . . . Level 4 . | . . . Level 5 . | . . . High Security . | . . . Max Security . | . . . Peak Influence 80 | 15 80 50 Initial . | . . . Average 11 | 3 12 4 Influence Increases 527 | 25 433 69 Destroy 0b10 Robot/C 280 | . 240 40 Destroy 0b10 Robot/NC 70 | 25 45 . Destroy Leader 80 | . 70 10 Successful Hack 46 | . 46 . Disable Machine 15 | . 15 . Destroy Structure 21 | . 2 19 Partial Spotted 15 | . 15 . Influence Decreases 527 | 25 433 69 Time Decay 503 | 25 413 65 Lost Part 24 | . 20 4 Squads Dispatched 2 | . 2 . Investigation 1 | . 1 . Extermination . | . . . Reinforcement 1 | . 1 . Assault . | . . . Garrison . | . . . Intercept . | . . . Searches Triggered . | . . . Construction Impeded . | . . . Haulers Reinforced . | . . . Active Scanning Responses . | . . . Cargo Convoy Interrupts . | . . . Stealth | -11 -10 -10 --------- Run | Yrd Mat Min Distress Signals 1 | . 1 . Communications Jammed . | . . . Distress Signals . | . . . Times Spotted 42 | . 26 16 Peak Tracking Total 7 | . 4 7 Tactical Retreats 1 | . . 1 Traps | -11 -10 -10 ------- Run | Yrd Mat Min Traps Triggered 4 | . 4 . Indirectly . | . . . Trap Hack Attempts . | . . . Triggered . | . . . Disarmed . | . . . Reprogrammed . | . . . Reused . | . . . Traps Extracted . | . . . Installed . | . . . Triggered . | . . . Machines | -11 -10 -10 ---------- Run | Yrd Mat Min Machines Disabled 1 | . 1 . Max in Single Turn 1 | . 1 . Machines Repaired . | . . . Machines Dismantled . | . . . Machines Sabotaged . | . . . Overloaded Fab Kills . | . . . Hacking | -11 -10 -10 --------- Run | Yrd Mat Min Machines Accessed 6 | . 6 . Terminals 6 | . 6 . Fabricators . | . . . Repair Stations . | . . . Recycling Units . | . . . Scanalyzers . | . . . Garrison Access . | . . . Total Hacks 22 | . 22 . Successful 15 | . 15 . Failed 7 | . 7 . Catastrophic . | . . . Database Lockouts . | . . . Manual 20 | . 20 . Terminals 22 | . 22 . Fabricators . | . . . Repair Stations . | . . . Recycling Units . | . . . Scanalyzers . | . . . Garrison Access . | . . . Terminal Hacks 4 | . 4 . Prototype ID Bank 2 | . 2 . Terminal Index 1 | . 1 . Hauler Manifests 1 | . 1 . Fabricator Hacks . | . . . Repair Station Hacks . | . . . Recycling Unit Hacks . | . . . Scanalyzer . | . . . Garrison Access Hacks . | . . . Unauthorized Hacks 11 | . 11 . Terminals 11 | . 11 . Botnet 4 | . 4 . Operators 1 | . 1 . Skim 6 | . 6 . Fabricators . | . . . Repair Stations . | . . . Recycling Units . | . . . Scanalyzers . | . . . Garrison Access . | . . . Data Cores Recovered . | . . . Used . | . . . Hacking Detections 6 | . 6 . Full Trace Events 1 | . 1 . Feedback Events . | . . . Feedback Blocked . | . . . Robot Schematics Acquired . | . . . Robots Built . | . . . Authchips . | . . . Time . | . . . Total Robot Build Rating . | . . . Part Schematics Acquired . | . . . Parts Built . | . . . Authchips . | . . . Time . | . . . Total Part Build Rating . | . . . Part Studies Acquired . | . . . Parts Repaired . | . . . Time . | . . . Parts Recycled . | . . . Recycled Matter . | . . . Retrieved Matter . | . . . Retrieved Components . | . . . Parts Scanalyzed . | . . . Part Schematics Acquired . | . . . Parts Damaged . | . . . Bothacking | -11 -10 -10 ------------ Run | Yrd Mat Min Used RIF Installer . | . . . Robots Hacked . | . . . Non-combat . | . . . Combat . | . . . Robot Hacks Applied . | . . . Relay Couplers Released . | . . . Fabnet Peak Effective % . | . . . Robots Rewired . | . . . Allies Hacked . | . . . Hacks Repelled . | . . . Allies | -11 -10 -10 -------- Run | Yrd Mat Min Total Allies . | . . . Largest Group . | . . . Highest-Rated Group . | . . . Highest-Rated Ally . | . . . Total Orders . | . . . Ally Attacks . | . . . Total Damage . | . . . Kills . | . . . Allies Corrupted . | . . . Allies Melted . | . . . Intel | -11 -10 -10 ------- Run | Yrd Mat Min Active Infowar (turns) 1927 | 15 1698 214 Seismic 1927 | 15 1698 214 Robot Analysis Total . | . . . Derelict Logs Recovered 1 | . . 1 Drone Launches . | . . . Drone Recoveries . | . . . Exploration | -11 -10 -10 ------------- Run | Yrd Mat Min Turns Passed 3335 | 123 2700 512 Spaces Moved 1219 | 65 980 174 Core 4 | 4 . . Treads 1106 | . 938 168 Legs 87 | 61 20 6 Wheels 22 | . 22 . Hover . | . . . Flight . | . . . Fastest Speed 50 | 50 105 240 Average Speed 230 | 116 234 249 Slowest Speed 470 | 120 240 470 Overloaded Moves . | . . . Propulsion Burnouts . | . . . Robots Hopped . | . . . Potential Cave-ins . | . . . Cave-ins Triggered . | . . . Exploration Rate (%) 50 | 4 98 49 Regions Visited 2 Branch Regions 1 Pre-discovered Areas 3 | . 3 . Known Exits Taken . | . . . Unknown Exits Taken 2 | 1 1 . Scrap Searched . | . . . Spaces Dug 7 | . . 7 Terrain Destroyed 25 | . . 25 Melee . | . . . Projectile . | . . . AOE 25 | . . 25 Terrain Rammed . | . . . Walls Destroyed . | . . . Machines Disabled . | . . . Actions | -11 -10 -10 --------- Run | Yrd Mat Min Total 1505 | 94 1198 213 Wait 82 | . 82 . Move 1217 | 64 979 174 Hop . | . . . Pick Up 38 | 14 24 . Fast Attach 2 | . 1 1 Attach 15 | 7 2 6 Detach . | . . . Swap 11 | . 8 3 Drop 9 | . 9 . Fire 129 | 9 91 29 Melee . | . . . Ram . | . . . Kick . | . . . Crush 2 | . 2 . Escape Stasis . | . . . Rewire . | . . . Trap . | . . . Miscellaneous . | . . . Route ------- -11/Scrapyard -10/Materials (discovered 5 exits: *Mat x3 / [*Min] / Sub) -10/Mines History --------- Turn | Location | Event 12 | -11/Scrapyard | Discovered new exit (range 15) 124 | -11/Scrapyard | Entered Materials 300 | -10/Materials | Build established: Mutant 399 | -10/Materials | Discovered new exit (range 12) 1147 | -10/Materials | Discovered new exit (range 16) 1805 | -10/Materials | Core integrity fell below 50% 1919 | -10/Materials | Discovered new exit (range 4) 2103 | -10/Materials | Identified exit to Materials 2103 | -10/Materials | Identified exit to Subcaves 2423 | -10/Materials | Learned location of 1 exit from Recycling 2459 | -10/Materials | Learned location of 1 exit from Recycling 2507 | -10/Materials | Learned Storage trap positions 2565 | -10/Materials | Learned location of Recycling (-8) 2824 | -10/Materials | Entered Mines 2843 | -10/Mines | Met a Derelict bent on vengeance 2975 | -10/Mines | Assembled infested the area 3051 | -10/Mines | Learned Materials terminal intel 3273 | -10/Mines | Core integrity fell below 20% 3336 | -10/Mines | Destroyed by as-28705 with Assembled Heavy Rifle Last Messages --------------- 03288_ Lgt. Treads destroyed. 03292_ Lgt. Nuclear Core destroyed. 03296_ as-71254 destroyed. 03303_ as-84986 destroyed. 03305_ Lgt. Treads destroyed. 03306_ The unstable cave ceiling collapses. 03309_ J 03313_ Acquired 12 matter. 03314_ U-05 Engineer builds a Wall. 03318_ U-05 Engineer lays Concrete. 03319_ U-05 Engineer builds a Wall. 03325_ The unstable cave ceiling collapses. 03327_ Destroyed Com. Wheel. 03327_ as-05827 destroyed. 03327_ U-05 Engineer builds a Wall. 03330_ System corrupted: Matter fused (-8). 03333_ U-05 Engineer lays Concrete. 03334_ U-05 Engineer builds a Wall. Map ----- +----------------------------------------------------+ | ???????????# ##???????????? | | ??????????? #???????????? | | ??????????? ????????????? | | ???????????# #????????????? | | ???????????? #????????????? | | ???????????? ##???????????? | | ????????????? ###?????????? | | ????????????## ##????????? | | ????????????? ####?????? | | ??????????????% ??????? | | ??????????????# % #?????????? | | ???????######## #???????????? | | ???????# ####?????????? | | ???????# ####### ## ?????????? | | ???????# #?????## ## #?????????? | | ???????# #??????### ## #?????????? | | ???????# #????????# ## #?????????? | | ???????# #????????# ## ###???????? | | ???????# #????????# r|##???????? | | ???????# #????????######!###??????? | | ???????# #???????????###t# #??????? | | ???????# #???????????# #u #??##??? | | ???????# #???????????# #= #? #??? | | ######## #???????????# # #??? | | #???????????## #??? | | ##########????????????# @ #??? | | #????????????????????# % ##??? | | #????????????????????# ##???? | | #????????????????????## ##????? | | ###################??## ##?????? | | #???# % ##??????? | | ################# ##### ##???????? | | ??????????????# ##$##????????? | | ??????????????# ##a??????????? | | ??????????????# ##a??????????? | | ??????????????# """ ##a??????????? | | ??????????????# """ ##a??????????? | | #?????????????# """ ##=??????????? | | ##????????????# #?"??????????? | | #????????????# #?%??????????? | | #????????????########????????????? | | ##????????????????????????????????? | | #?#####???????????????????????????? | | ?## ######??????????????????????? | | ?# ##?????????????????????? | | ## #?????????????????????? | | # #?????????????????????? | | ### ##?????????????????????? | | ##?####??????????????????????? | | ##????????????????????????????? | +----------------------------------------------------+ Best States ------------- Heat Dissipation 39 Energy Generation 14 Energy Capacity 250 Matter Stores 300 Matter Capacity 300 Sight Range 16 Terrain Scan Density 10 Evasion (%) 55 Recoil Reduction 2 Item Schematics ----------------- None Robot Schematics ------------------ None Fabricated ------------ Nothing Repaired ---------- Nothing Studied --------- None Alien Tech Used ----------------- None Achievements -------------- None Challenges ------------ None Game ------ Seed DispersionGyrokineticPendant Manual? 0 Play Time 00:22:24 Cumulative 71.0 hours Start 2025.11.04 @ 17:34:16 End 2025.11.04 @ 18:12:33 Sessions 1 Manual Loads 0 Difficulty Rogue Special Mode None Game No. 61 Rogue 61 Adventurer 0 Explorer 0 Win Type - Total 0 Types 0/0/0/0/0/0/0/0/0/0 Lore% 26 Gallery% 38 Achievement% 27 Wizard Run 0 Options --------- Layout 2 ASCII 0 Keyboard 0 Movement Mouse Keybinds 0 Fullscreen 1 Font 24/Smallcaps Map View 50x44 Zoom Use 0% Tactical HUD 1 Map Filters NONE Filters NONE Steam 1 RUN: 111a140f-145f-47af-8e29-9f55bef6156f